fUST/lending_fUST_20240501
["ID","MTS","AMOUNT","RATE_DAILY","PERIOD"]
[324986807,1714495859071,-500.0,0.00032876,2]
[324986808,1714495859080,-604.98,0.00032876,2]
[324986809,1714495859090,-500.0,0.00032876,2]
[324986810,1714495859099,-500.0,0.00032876,2]
[324986811,1714495859108,-500.0,0.00032876,2]
[324986812,1714495859118,-604.9,0.00032876,2]
[324986813,1714495859128,-500.0,0.00032876,2]
[324986814,1714495859137,-500.0,0.00032876,2]
[324986815,1714495859146,-664.79,0.00032876,2]
[324986816,1714495859156,-500.0,0.00032876,2]
[324986817,1714495859165,-500.0,0.00032876,2]
[324986818,1714495859175,-500.0,0.00032876,2]
[324986819,1714495859184,-500.0,0.00032876,2]
[324986820,1714495859193,-501.9525827,0.00032876,2]
[324986821,1714495859203,-509.59,0.00032876,2]
[324986822,1714495859212,-592.02,0.00032876,2]
[324986823,1714495859221,-632.41,0.00032876,2]
[324986824,1714495859231,-323.14432132,0.00032876,2]
[324986825,1714495859240,-500.0,0.00032876,2]
[324986826,1714495859249,-500.0,0.00032876,2]
[324986827,1714495859258,-500.0,0.00032876,2]
[324986828,1714495859267,-500.0,0.00032876,2]
[324986829,1714495859276,-500.0,0.00032876,2]
[324986830,1714495859287,-605.7,0.00032876,2]
[324986831,1714495859297,-500.0,0.00032876,2]
[324986832,1714495859306,-500.0,0.00032876,2]
[324986833,1714495859315,-500.0,0.00032876,2]
[324986834,1714495859324,-500.0,0.00032876,2]
[324986835,1714495859333,-500.0,0.00032876,2]
[324986836,1714495859343,-500.0,0.00032876,2]
[324986837,1714495859352,-500.0,0.00032876,2]
[324986838,1714495859361,-500.0,0.00032876,2]
[324986839,1714495859371,-500.0,0.00032876,2]
[324986840,1714495859380,-500.0,0.00032876,2]
[324986841,1714495859389,-500.0,0.00032876,2]
[324986842,1714495859400,-500.0,0.00032876,2]
[324986843,1714495859410,-922.2,0.00032876,2]
[324986844,1714495859419,-583.9,0.00032876,2]
[324986845,1714495859428,-500.0,0.00032876,2]
[324986846,1714495859438,-845.52,0.00032876,2]
[324986847,1714495859448,-500.0,0.00032876,2]
[324986848,1714495859458,-500.0,0.00032876,2]
[324986849,1714495859467,-637.22,0.00032876,2]
[324986850,1714495859479,-500.0,0.00032876,2]
[324986851,1714495859488,-500.0,0.00032876,2]
[324986852,1714495859497,-500.0,0.00032876,2]
[324986853,1714495859506,-1092.6,0.00032876,2]
[324986854,1714495859515,-500.0,0.00032876,2]
[324986855,1714495859525,-500.0,0.00032876,2]
[324986856,1714495859534,-500.0,0.00032876,2]
[324986857,1714495859545,-500.0,0.00032876,2]
[324986858,1714495859554,-610.12,0.00032876,2]
[324986859,1714495859564,-500.0,0.00032876,2]
[324986860,1714495859574,-500.0,0.00032876,2]
[324986861,1714495859583,-533.31,0.00032876,2]
[324986862,1714495859592,-500.0,0.00032876,2]
[324986863,1714495859601,-501.51858115,0.00032876,2]
[324986864,1714495859609,-500.0,0.00032876,2]
[324986865,1714495859618,-500.0,0.00032876,2]
[324986866,1714495859626,-500.0,0.00032876,2]
[324986867,1714495859634,-500.0,0.00032876,30]
[324986868,1714495859642,-500.0,0.00032876,2]
[324986869,1714495859651,-500.0,0.00032876,2]
[324986870,1714495859661,-500.0,0.00032876,2]
[324986871,1714495859669,-501.11229134,0.00032876,2]
[324986872,1714495859676,-605.25,0.00032876,2]
[324986873,1714495859685,-802.95,0.00032876,2]
[324986874,1714495859693,-529.40185955,0.00032876,2]
[324986875,1714495859702,-500.0,0.00032876,2]
[324986876,1714495859710,-1524.93,0.00032876,2]
[324986877,1714495859719,-637.62,0.00032876,2]
[324986878,1714495859727,-500.0,0.00032876,2]
[324986879,1714495859736,-206.01608299,0.00032876,2]
[324986880,1714495859744,-500.0,0.00032876,2]
[324986881,1714495859752,-500.0,0.00032876,2]
[324986882,1714495859760,-500.0,0.00032876,2]
[324986883,1714495859769,-539.55,0.00032876,2]
[324986884,1714495859777,-500.0,0.00032876,2]
[324986885,1714495859786,-500.0,0.00032876,2]
[324986886,1714495859795,-500.0,0.00032876,2]
[324986887,1714495859803,-924.63,0.00032876,2]
[324986888,1714495859811,-3587.0,0.00032876,2]
[324986889,1714495859820,-1150.13,0.00032876,2]
[324986890,1714495859828,-791.0,0.00032876,2]
[324986891,1714495859837,-500.0,0.00032876,2]
[324986892,1714495859848,-500.0,0.00032876,2]
[324986893,1714495859857,-500.0,0.00032876,2]
[324986894,1714495859866,-862.88,0.00032876,2]
[324986895,1714495859876,-300.0,0.00032876,2]
[324986896,1714495859885,-500.0,0.00032876,2]
[324986897,1714495859894,-500.0,0.00032876,2]
[324986898,1714495859903,-854.56,0.00032876,2]
[324986899,1714495859912,-500.0,0.00032876,2]
[324986900,1714495859922,-647.71,0.00032876,2]
[324986901,1714495859931,-886.62,0.00032876,2]
[324986902,1714495859940,-802.53,0.00032876,2]
[324986903,1714495859950,-500.0,0.00032876,2]
[324986904,1714495859959,-500.0,0.00032876,2]
[324986905,1714495859968,-500.0,0.00032876,2]
[324986906,1714495859978,-500.0,0.00032876,2]
[324986907,1714495859987,-500.0,0.00032876,2]
[324986908,1714495859996,-713.44,0.00032876,2]
[324986909,1714495860005,-569.73,0.00032876,2]
[324986910,1714495860015,-504.02,0.00032876,2]
[324986911,1714495860024,-500.0,0.00032876,2]
[324986912,1714495860034,-500.0,0.00032876,2]
[324986913,1714495860045,-500.0,0.00032876,2]
[324986914,1714495860054,-340.01326738,0.00032876,2]
[324986915,1714495860062,-536.08,0.00032876,2]
[324986916,1714495860072,-500.0,0.00032876,2]
[324986917,1714495860081,-500.0,0.00032876,2]
[324986918,1714495860090,-500.0,0.00032876,2]
[324986919,1714495860099,-422.63429743,0.00032876,2]
[324986920,1714495860108,-317.85135012,0.00032876,2]
[324986921,1714495860118,-500.0,0.00032876,2]
[324986922,1714495860126,-500.0,0.00032876,2]
[324986923,1714495860136,-500.0,0.00032876,2]
[324986924,1714495860145,-500.0,0.00032876,2]
[324986925,1714495860154,-512.85984557,0.00032876,2]
[324986926,1714495860164,-414.71908725,0.00032876,2]
[324986927,1714495860173,-445.30115945,0.00032876,2]
[324986928,1714495860182,-205.00814462,0.00032876,2]
[324986929,1714495860191,-242.63120508,0.00032876,2]
[324986930,1714495860201,-500.0,0.00032876,2]
[324986931,1714495860210,-500.0,0.00032876,2]
[324986932,1714495860220,-347.08908349,0.00032876,2]
[324986933,1714495860229,-500.0,0.00032876,2]
[324986934,1714495860239,-500.0,0.00032876,2]
[324986935,1714495860248,-633.37,0.00032876,2]
[324986936,1714495860258,-500.0,0.00032876,2]
[324986937,1714495860267,-500.0,0.00032876,2]
[324986938,1714495860276,-500.0,0.00032876,2]
[324986939,1714495860288,-500.0,0.00032876,2]
[324986940,1714495860298,-500.0,0.00032876,2]
[324986941,1714495860307,-450.0,0.00032876,2]
[324986942,1714495860318,-500.0,0.00032876,2]
[324986943,1714495860328,-3304.47,0.00032876,2]
[324986944,1714495860337,-500.0,0.00032876,2]
[324986945,1714495860347,-814.27,0.00032876,2]
[324986946,1714495860356,-500.0,0.00032876,2]
[324986947,1714495860366,-500.0,0.00032876,2]
[324986948,1714495860375,-618.81,0.00032876,2]
[324986949,1714495860384,-765.94,0.00032876,2]
[324986950,1714495860394,-549.39878885,0.00032876,2]
[324986951,1714495860407,-500.0,0.00032876,2]
[324986952,1714495860416,-779.16,0.00032876,2]
[324986953,1714495860425,-534.2,0.00032876,2]
[324986954,1714495860434,-500.0,0.00032876,2]
[324986955,1714495860445,-500.0,0.00032876,2]
[324986956,1714495860454,-686.77,0.00032876,2]
[324986957,1714495860463,-500.0,0.00032876,2]
[324986958,1714495860473,-825.88,0.00032876,2]
[324986959,1714495860485,-500.0,0.00032876,2]
[324986960,1714495860494,-500.0,0.00032876,2]
[324986961,1714495860503,-500.0,0.00032876,2]
[324986962,1714495860512,-500.0,0.00032876,2]
[324986963,1714495860521,-500.0,0.00032876,2]
[324986964,1714495860529,-500.0,0.00032876,2]
[324986965,1714495860541,-563.62,0.00032876,2]
[324986966,1714495860550,-548.87,0.00032876,2]
[324986967,1714495860559,-500.0,0.00032876,2]
[324986968,1714495860569,-500.0,0.00032876,2]
[324986969,1714495860579,-1600.03,0.00032876,2]
[324986970,1714495860589,-500.0,0.00032876,2]
[324986971,1714495860598,-500.0,0.00032876,2]
[324986972,1714495860608,-500.0,0.00032876,2]
[324986973,1714495860617,-500.0,0.00032876,2]
[324986974,1714495860626,-896.06,0.00032876,2]
[324986975,1714495860635,-500.0,0.00032876,2]
[324986976,1714495860645,-500.0,0.00032876,2]
[324986977,1714495860654,-500.0,0.00032876,2]
[324986978,1714495860663,-500.0,0.00032876,2]
[324986979,1714495860672,-783.25,0.00032876,2]
[324986980,1714495860682,-1801.5,0.00032931,7]
[324986981,1714495860691,-620.00000004,0.00032937,2]
[324986982,1714495860700,-200.0,0.00032949,120]
[324986983,1714495860709,-5789.41,0.00032968,2]
[324986984,1714495860718,-5789.41,0.00032968,2]
[324986985,1714495860727,-5789.41,0.00032968,2]
[324986986,1714495860737,-5789.41,0.00032968,2]
[324986987,1714495860746,-5789.41,0.00032968,2]
[324986988,1714495860755,-5789.41,0.00032968,2]
[324986989,1714495860764,-5789.41,0.00032968,2]
[324986990,1714495860774,-5789.41,0.00032968,2]
[324986991,1714495860783,-5789.41,0.00032968,2]
[324986992,1714495860795,-5789.41,0.00032968,2]
[324986993,1714495860804,-187.928216,0.00032972,2]
[324986994,1714495860813,-396.743746,0.00032972,2]
[324986995,1714495860822,-167.372942,0.00032972,2]
[324986996,1714495860831,-165.309895,0.00032972,2]
[324986997,1714495860840,-178.979254,0.00032972,2]
[324986998,1714495860849,-423.0,0.00033,2]
[324986999,1714495860858,-187.0,0.00033,2]
[324987000,1714495860867,-500.0,0.0003315,7]
[324987001,1714495860876,-500.0,0.0003315,7]
[324987002,1714495860885,-988.34,0.0003315,7]
[324987003,1714495860894,-500.0,0.0003315,7]
[324987004,1714495860902,-500.0,0.0003315,7]
[324987005,1714495860911,-500.0,0.0003315,7]
[324987006,1714495860920,-500.0,0.0003315,7]
[324987007,1714495860929,-502.14851973,0.0003315,7]
[324987008,1714495860938,-511.95940733,0.0003315,7]
[324987009,1714495860947,-508.33,0.0003315,7]
[324987010,1714495860956,-500.0,0.0003315,7]
[324987011,1714495860966,-500.0,0.0003315,7]
[324987012,1714495860974,-500.0,0.0003315,7]
[324987013,1714495860983,-500.0,0.0003315,7]
[324987014,1714495860992,-500.0,0.0003315,7]
[324987015,1714495861001,-500.0,0.0003315,7]
[324987016,1714495861010,-500.0,0.0003315,7]
[324987017,1714495861020,-500.0,0.0003315,7]
[324987018,1714495861029,-510.98,0.0003315,7]
[324987019,1714495861040,-500.0,0.0003315,7]
[324987020,1714495861148,-553.82,0.0003315,7]
[324987021,1714495861157,-500.0,0.0003315,7]
[324987022,1714495861166,-500.0,0.0003315,7]
[324987023,1714495861175,-500.0,0.0003315,7]
[324987024,1714495861185,-501.85093738,0.0003315,7]
[324987025,1714495861193,-500.0,0.0003315,7]
[324987026,1714495861203,-500.0,0.0003315,7]
[324987027,1714495861212,-820.04,0.0003315,7]
[324987028,1714495861221,-571.87,0.0003315,7]
[324987029,1714495861229,-439.55099164,0.0003315,7]
[324987030,1714495862213,-730.70803192,0.000138,2]
[324987031,1714495862223,-401.34900836,0.0003315,7]
[324987032,1714495862232,-500.0,0.0003315,7]
[324987033,1714495862241,-500.0,0.0003315,7]
[324987034,1714495862251,-712.99,0.0003315,7]
[324987035,1714495862260,-561.78,0.0003315,7]
[324987036,1714495862269,-1553.91,0.0003315,7]
[324987037,1714495862278,-500.0,0.0003315,7]
[324987038,1714495862287,-500.0,0.0003315,7]
[324987039,1714495862296,-500.0,0.0003315,7]
[324987040,1714495862305,-500.0,0.0003315,7]
[324987041,1714495862314,-500.0,0.0003315,7]
[324987042,1714495862324,-984.47,0.0003315,7]
[324987043,1714495862333,-500.0,0.0003315,7]
[324987044,1714495862342,-500.0,0.0003315,7]
[324987045,1714495862352,-500.0,0.0003315,7]
[324987046,1714495862361,-558.86,0.0003315,7]
[324987047,1714495862370,-500.0,0.0003315,7]
[324987048,1714495862380,-500.0,0.0003315,2]
[324987049,1714495862389,-500.0,0.0003315,7]
[324987050,1714495862401,-500.0,0.0003315,7]
[324987051,1714495862411,-500.0,0.0003315,7]
[324987052,1714495862420,-658.2,0.0003315,7]
[324987053,1714495862429,-500.0,0.0003315,7]
[324987054,1714495862439,-500.0,0.0003315,7]
[324987055,1714495862448,-581.98417551,0.0003315,7]
[324987056,1714495862457,-945.94,0.0003315,7]
[324987057,1714495862466,-500.0,0.0003315,7]
[324987058,1714495862476,-580.31,0.0003315,7]
[324987059,1714495862487,-500.0,0.0003315,7]
[324987060,1714495862496,-604.98,0.0003315,7]
[324987061,1714495862505,-500.0,0.0003315,7]
[324987062,1714495862514,-500.0,0.0003315,7]
[324987063,1714495862523,-266.24564074,0.0003315,7]
[324987064,1714495862532,-604.9,0.0003315,7]
[324987065,1714495862544,-500.0,0.0003315,7]
[324987066,1714495862553,-500.0,0.0003315,7]
[324987067,1714495862562,-664.79,0.0003315,7]
[324987068,1714495862572,-500.0,0.0003315,7]
[324987069,1714495862582,-590.94507233,0.0003315,7]
[324987070,1714495862591,-500.0,0.0003315,7]
[324987071,1714495862600,-504.2274337,0.0003315,7]
[324987072,1714495862610,-509.59,0.0003315,7]
[324987073,1714495862619,-592.02,0.0003315,7]
[324987074,1714495862628,-632.41,0.0003315,7]
[324987075,1714495862637,-500.0,0.0003315,7]
[324987076,1714495862646,-500.0,0.0003315,7]
[324987077,1714495862656,-500.0,0.0003315,7]
[324987078,1714495862665,-500.0,0.0003315,7]
[324987079,1714495862675,-500.0,0.0003315,7]
[324987080,1714495862684,-605.7,0.0003315,7]
[324987081,1714495862694,-500.0,0.0003315,7]
[324987082,1714495862704,-500.0,0.0003315,7]
[324987083,1714495862713,-500.0,0.0003315,7]
[324987084,1714495862723,-471.10865008,0.0003315,7]
[324987085,1714495862733,-500.0,0.0003315,7]
[324987086,1714495862744,-500.0,0.0003315,7]
[324987087,1714495862753,-500.0,0.0003315,7]
[324987088,1714495862763,-500.0,0.0003315,7]
[324987089,1714495862772,-500.0,0.0003315,7]
[324987090,1714495862781,-500.0,0.0003315,7]
[324987091,1714495862792,-500.0,0.0003315,7]
[324987092,1714495862801,-500.0,0.0003315,7]
[324987093,1714495862810,-922.2,0.0003315,7]
[324987094,1714495862819,-583.9,0.0003315,7]
[324987095,1714495862828,-500.0,0.0003315,7]
[324987096,1714495862838,-845.52,0.0003315,7]
[324987097,1714495862847,-500.0,0.0003315,7]
[324987098,1714495862955,-500.0,0.0003315,7]
[324987099,1714495862964,-439.73665983,0.0003315,7]
[324987100,1714495862977,-197.48334017,0.0003315,7]
[324987101,1714495862986,-513.42333922,0.0003315,7]
[324987102,1714495862996,-500.0,0.0003315,7]
[324987103,1714495863005,-151.75334167,0.0003315,7]
[324987104,1714495863015,-1092.6,0.0003315,7]
[324987105,1714495863024,-500.0,0.0003315,7]
[324987106,1714495863033,-500.0,0.0003315,7]
[324987107,1714495863044,-500.0,0.0003315,7]
[324987108,1714495863053,-500.0,0.0003315,7]
[324987109,1714495863062,-610.12,0.0003315,7]
[324987110,1714495863071,-500.0,0.0003315,7]
[324987111,1714495863081,-500.0,0.0003315,7]
[324987112,1714495863090,-533.31,0.0003315,7]
[324987113,1714495863099,-500.0,0.0003315,7]
[324987114,1714495863109,-500.0,0.0003315,7]
[324987115,1714495863118,-500.0,0.0003315,7]
[324987116,1714495863127,-500.0,0.0003315,30]
[324987117,1714495863136,-500.0,0.0003315,7]
[324987118,1714495863145,-500.0,0.0003315,7]
[324987119,1714495863155,-500.0,0.0003315,7]
[324987120,1714495863164,-500.0,0.0003315,7]
[324987121,1714495863173,-605.25,0.0003315,7]
[324987122,1714495863182,-802.95,0.0003315,7]
[324987123,1714495863191,-502.20110562,0.0003315,7]
[324987124,1714495863201,-1524.93,0.0003315,7]
[324987125,1714495863210,-637.62,0.0003315,7]
[324987126,1714495863219,-500.0,0.0003315,7]
[324987127,1714495863228,-500.0,0.0003315,3]
[324987128,1714495863237,-500.0,0.0003315,7]
[324987129,1714495863246,-500.0,0.0003315,7]
[324987130,1714495863255,-539.55,0.0003315,7]
[324987131,1714495863265,-500.0,0.0003315,7]
[324987132,1714495863274,-500.0,0.0003315,7]
[324987133,1714495863283,-924.63,0.0003315,7]
[324987134,1714495863294,-3587.0,0.0003315,7]
[324987135,1714495863303,-1150.13,0.0003315,7]
[324987136,1714495863313,-791.0,0.0003315,7]
[324987137,1714495863322,-238.58891095,0.0003315,7]
[324987138,1714495863331,-500.0,0.0003315,7]
[324987139,1714495863341,-500.0,0.0003315,7]
[324987140,1714495863350,-862.88,0.0003315,7]
[324987141,1714495863359,-300.0,0.0003315,7]
[324987142,1714495863369,-500.0,0.0003315,7]
[324987143,1714495863379,-500.0,0.0003315,7]
[324987144,1714495863388,-854.56,0.0003315,7]
[324987145,1714495863398,-500.0,0.0003315,7]
[324987146,1714495863411,-647.71,0.0003315,7]
[324987147,1714495863420,-886.62,0.0003315,7]
[324987148,1714495863430,-802.53,0.0003315,7]
[324987149,1714495863442,-500.0,0.0003315,7]
[324987150,1714495863451,-500.0,0.0003315,7]
[324987151,1714495863461,-500.0,0.0003315,7]
[324987152,1714495863472,-500.0,0.0003315,7]
[324987153,1714495863482,-500.0,0.0003315,7]
[324987154,1714495863493,-713.44,0.0003315,7]
[324987155,1714495863503,-569.73,0.0003315,7]
[324987156,1714495863513,-504.02,0.0003315,7]
[324987157,1714495863523,-500.0,0.0003315,7]
[324987158,1714495863532,-500.0,0.0003315,7]
[324987159,1714495863542,-500.0,0.0003315,7]
[324987160,1714495863552,-536.08,0.0003315,7]
[324987161,1714495863562,-500.0,0.0003315,7]
[324987162,1714495863571,-500.0,0.0003315,7]
[324987163,1714495863582,-500.0,0.0003315,7]
[324987164,1714495863592,-633.37,0.0003315,7]
[324987165,1714495863602,-500.0,0.0003315,7]
[324987166,1714495863611,-500.0,0.0003315,7]
[324987167,1714495863620,-511.76493726,0.0003315,7]
[324987168,1714495863630,-485.85548076,0.0003315,7]
[324987169,1714495863784,-151.48563567,0.0002,2]
[324987170,1714495863796,-14.14451924,0.0003315,7]
[324987171,1714495863805,-500.0,0.0003315,7]
[324987172,1714495863814,-3304.47,0.0003315,7]
[324987173,1714495863824,-500.0,0.0003315,7]
[324987174,1714495863833,-814.27,0.0003315,7]
[324987175,1714495863843,-500.0,0.0003315,7]
[324987176,1714495863852,-500.0,0.0003315,7]
[324987177,1714495863861,-618.81,0.0003315,7]
[324987178,1714495863870,-765.94,0.0003315,7]
[324987179,1714495863879,-500.0,0.0003315,7]
[324987180,1714495863888,-779.16,0.0003315,7]
[324987181,1714495863898,-534.2,0.0003315,7]
[324987182,1714495863908,-500.0,0.0003315,7]
[324987183,1714495863917,-500.0,0.0003315,7]
[324987184,1714495863926,-686.77,0.0003315,7]
[324987185,1714495863935,-500.0,0.0003315,7]
[324987186,1714495863944,-825.88,0.0003315,7]
[324987187,1714495863953,-500.0,0.0003315,7]
[324987188,1714495863962,-500.0,0.0003315,7]
[324987189,1714495863972,-500.0,0.0003315,7]
[324987190,1714495863981,-500.0,0.0003315,7]
[324987191,1714495863989,-500.0,0.0003315,7]
[324987192,1714495863998,-500.0,0.0003315,7]
[324987193,1714495864008,-563.62,0.0003315,7]
[324987194,1714495864018,-548.87,0.0003315,7]
[324987195,1714495864028,-500.0,0.0003315,7]
[324987196,1714495864037,-500.0,0.0003315,7]
[324987197,1714495864048,-1600.03,0.0003315,7]
[324987198,1714495864057,-478.87414786,0.0003315,7]
[324987199,1714495864066,-541.93212074,0.0003315,7]
[324987200,1714495864075,-500.0,0.0003315,7]
[324987201,1714495864084,-431.43225637,0.0003315,7]
[324987202,1714495864253,-153.0,0.00031406,2]
[324987203,1714495864262,-21730.07,0.0003177,3]
[324987204,1714495864272,-201.49518585,0.0003178,2]
[324987205,1714495864281,-68.56774363,0.0003315,7]
[324987206,1714495864294,-896.06,0.0003315,7]
[324987207,1714495864303,-500.0,0.0003315,7]
[324987208,1714495864312,-500.0,0.0003315,7]
[324987209,1714495864321,-500.0,0.0003315,7]
[324987210,1714495864330,-500.0,0.0003315,7]
[324987211,1714495864339,-783.25,0.0003315,7]
[324987212,1714495864347,-423.0,0.00033151,2]
[324987213,1714495864357,-200.0,0.00033248,120]
[324987214,1714495864366,-1206.19071393,0.00033265,30]
[324987215,1714495864375,-150.0,0.000333,20]
[324987216,1714495864384,-187.928216,0.00033384,2]
[324987217,1714495864393,-396.743746,0.00033384,2]
[324987218,1714495864405,-500.0,0.00033424,7]
[324987219,1714495864415,-500.0,0.00033424,7]
[324987220,1714495864425,-988.34,0.00033424,7]
[324987221,1714495864436,-500.0,0.00033424,7]
[324987222,1714495864446,-502.41483296,0.00033424,7]
[324987223,1714495864456,-500.0,0.00033424,7]
[324987224,1714495864465,-500.0,0.00033424,7]
[324987225,1714495864475,-508.33,0.00033424,7]
[324987226,1714495864488,-500.0,0.00033424,7]
[324987227,1714495864498,-500.0,0.00033424,7]
[324987228,1714495864507,-500.0,0.00033424,7]
[324987229,1714495864516,-500.0,0.00033424,7]
[324987230,1714495864526,-500.0,0.00033424,7]
[324987231,1714495864534,-500.0,0.00033424,7]
[324987232,1714495864547,-500.0,0.00033424,7]
[324987233,1714495864556,-500.0,0.00033424,7]
[324987234,1714495864565,-510.98,0.00033424,7]
[324987235,1714495864574,-500.0,0.00033424,7]
[324987236,1714495864583,-553.82,0.00033424,7]
[324987237,1714495864592,-500.0,0.00033424,7]
[324987238,1714495864601,-500.0,0.00033424,7]
[324987239,1714495864611,-500.0,0.00033424,7]
[324987240,1714495864620,-500.0,0.00033424,7]
[324987241,1714495864629,-820.04,0.00033424,7]
[324987242,1714495864638,-571.87,0.00033424,7]
[324987243,1714495864646,-840.9,0.00033424,7]
[324987244,1714495864656,-500.0,0.00033424,7]
[324987245,1714495864664,-500.0,0.00033424,7]
[324987246,1714495864674,-712.99,0.00033424,7]
[324987247,1714495864683,-561.78,0.00033424,7]
[324987248,1714495864692,-1553.91,0.00033424,7]
[324987249,1714495864701,-500.0,0.00033424,7]
[324987250,1714495864710,-500.0,0.00033424,7]
[324987251,1714495864719,-320.75686194,0.00033424,7]
[324987252,1714495864912,726.79283329,9.999e-05,2]
[324987253,1714495865263,13307.66477879,9.999e-05,2]
[324987261,1714496279385,314.81328207,9.999e-05,2]
[324987262,1714496356948,-314.81328207,0.00013799,2]
[324987263,1714496356967,-730.70803192,0.00013999,2]
[324987264,1714496356988,-928.69749977,0.00014,2]
[324987265,1714496357008,-8223.78118624,0.00014499,2]
[324987285,1714496746962,314.81328207,9.999e-05,2]
[324987286,1714496837165,-1891.97802376,0.00012438,2]
[324987287,1714496837184,-250.0,0.00012439,2]
[324987288,1714496837203,-389.99316695,0.00012509,2]
[324987289,1714496837222,-1621.41921468,0.0001251,2]
[324987290,1714496837241,-190.59605249,0.0001251,2]
[324987291,1714496837260,-1549.94432231,0.00012511,2]
[324987292,1714496845107,-57668.84372603,0.00012511,2]
[324987293,1714496845128,-22763.22228799,0.00012512,2]
[324987294,1714496879671,520.52223815,9.999e-05,2]
[324987299,1714496919913,2084.4976817,9.999e-05,2]
[324987300,1714496935831,853.83588566,9.999e-05,2]
[324987317,1714497032655,-3824.5475789,0.00011608,2]
[324987318,1714497032664,-164.40785184,0.00012408,2]
[324987319,1714497032673,-520.32045227,0.00012508,2]
[324987320,1714497032682,-275.71,0.00012508,2]
[324987321,1714497032691,-39421.4418703,0.00012509,2]
[324987322,1714497032705,-901.21646744,0.00012509,2]
[324987330,1714497039697,-14407.23090063,0.00012509,2]
[324987332,1714497039712,-4488.89880997,0.00012509,2]
[324987334,1714497039721,-1890.97658318,0.00012511,2]
[324987335,1714497039730,-2136.77771201,0.00012512,2]
[324987336,1714497039739,-771.56992736,0.000129,2]
[324987337,1714497039748,-2972.2884577,0.00013153,2]
[324987338,1714497039758,-164.40785177,0.00013345,2]
[324987339,1714497039770,-1902.3019495,0.00013621,2]
[324987340,1714497039780,-154.98114259,0.00013697,2]
[324987341,1714497039789,-541.812984,0.00013699,2]
[324987342,1714497039800,-3000.0,0.00013699,2]
[324987343,1714497039811,-166.666666,0.00013699,2]
[324987344,1714497039820,-730.70803192,0.000138,2]
[324987345,1714497039829,-189.03839214,0.000139,2]
[324987346,1714497039839,-489.94478985,0.00014,2]
[324987347,1714497039848,-164.40785177,0.00014281,2]
[324987348,1714497039858,-497.39509606,0.00014497,2]
[324987349,1714497039867,-154.9402763,0.00014497,2]
[324987350,1714497039876,-206.84821855,0.00014497,2]
[324987351,1714497039885,-155.04940114,0.00014497,2]
[324987352,1714497039895,-355.96806476,0.00014498,2]
[324987353,1714497039904,-154.8028749,0.00015,2]
[324987354,1714497039914,-939.47409396,0.00015,2]
[324987355,1714497039925,-164.40785177,0.00015218,2]
[324987356,1714497039935,-1145.56502001,0.000159,2]
[324987357,1714497039944,-514.30635662,0.00016,2]
[324987358,1714497039958,-9378.0153671,0.00016,2]
[324987359,1714497039967,-164.40785177,0.00016154,2]
[324987360,1714497039976,-771.56992732,0.00016271,2]
[324987361,1714497039985,-272.83575254,0.000165,2]